[Event "Eurasia Open Cup 2019"]
[Site "Ekaterinburg"]
[Date "2019.08.01"]
[Round "2.34"]
[White "Polosin, Evgeni"]
[Black "Kanter, Eduard"]
[Result "0-1"]
[ECO "B76"]
[WhiteElo "2153"]
[BlackElo "2384"]
[Annotator "NA"]
[PlyCount "108"]
[EventDate "2019.07.31"]
[EventType "swiss"]
[EventCountry "RUS"]
[SourceTitle "playchess.com"]
[Source "ChessBase"]
[SourceQuality "1"]
[TimeControl "5400+30"]

1. e4 {[%emt 0:00:00]} c5 {[%emt 0:00:00]} 2. Nf3 {[%emt 0:00:00]} d6 {[%emt 0:00:00]} 3. d4 {[%emt 0:00:00]} cxd4 {[%emt 0:00:00]} 4. Nxd4 {[%emt 0:00:40]} Nf6 {[%emt 0:00:00]} 5. Nc3 {[%emt 0:00:04]} g6 {[%emt 0:00:00]} 6. Be3 {[%emt 0:01:14]} Bg7 {[%emt 0:00:00]} 7. f3 {[%emt 0:00:44]} O-O {[%emt 0:00:30]} 8. Qd2 {[%emt 0:00:30]} Nc6 {[%emt 0:00:00]} 9. g4 {[%emt 0:00:24]} Bd7 {[%emt 0:02:28]} 10. Be2 {[%emt 0:06:23]} Rc8 {[%emt 0:01:41]} 11. O-O-O {[%emt 0:07:41]} Ne5 {[%emt 0:00:18]} 12. h4 {[%emt 0:02:45]} Qa5 {[%emt 0:04:29]} 13. Nb3 {[%emt 0:08:59]} Qc7 {[%emt 0:00:22]} 14. g5 {[%emt 0:16:17]} Nh5 {[%emt 0:07:23]} 15. Nd5 {[%emt 0:02:09]} Qd8 {[%emt 0:00:24]} 16. Bxa7 {[%emt 0:01:07]} Be6 {[%emt 0:09:58]} 17. Bd4 {[%emt 0:10:28]} Bxd5 {[%emt 0:07:20]} 18. exd5 {[%emt 0:02:38]} b5 {[%emt 0:19:26]} 19. Kb1 {[%emt 0:03:55]} Qd7 {[%emt 0:00:03]} 20. f4 {[%emt 0:16:19]} Nc4 {[%emt 0:10:08]} 21. Qc1 {[%emt 0:05:41]} Ng3 {[%emt 0:00:19]} 22. Rhe1 {[%emt 0:00:04]} Nf5 {[%emt 0:06:23]} 23. Bxg7 {[%emt 0:00:43]} Kxg7 {[%emt 0:10:24]} 24. Bxc4 {[%emt 0:00:04]} Rxc4 {[%emt 0:00:34]} 25. Na5 {[%emt 0:05:56]} Ra4 {[%emt 0:02:38]} 26. Nc6 {[%emt 0:00:04]} Rfa8 {[%emt 0:09:27]} 27. a3 {[%emt 0:00:15]} e6 {[%emt 0:03:47]} 28. Qd2 {[%emt 0:00:32]} Rc4 {[%emt 0:00:34]} 29. Nb4 {[%emt 0:03:13]} Rac8 {[%emt 0:03:29]} 30. c3 {[%emt 0:01:45]} Re8 {[%emt 0:01:20]} 31. dxe6 {[%emt 0:00:14]} fxe6 {[%emt 0:01:10]} 32. Nd3 {[%emt 0:02:24]} Qc6 {[%emt 0:00:09]} 33. h5 {[%emt 0:01:38]} gxh5 {[%emt 0:00:56]} 34. Qe2 {[%emt 0:00:50]} Ng3 {[%emt 0:00:15]} 35. Qf2 {[%emt 0:00:44]} Nf5 {[%emt 0:00:34]} 36. Nb4 {[%emt 0:00:00]} Qb7 {[%emt 0:00:00]} 37. Rd3 {[%emt 0:00:16]} Re4 {[%emt 0:00:36]} 38. Red1 {[%emt 0:00:53]} d5 {[%emt 0:00:21]} 39. Rh3 {[%emt 0:00:59]} h4 {[%emt 0:00:17]} 40. Nd3 {[%emt 0:00:01]} Qc7 {[%emt 0:00:49]} 41. Rdh1 {[%emt 0:00:33]} d4 {[%emt 0:00:45]} 42. cxd4 {[%emt 0:00:30]} Qc4 {[%emt 0:01:05]} 43. Rc1 {[%emt 0:00:00]} Qxd4 {[%emt 0:00:00]} 44. Rc7+ {[%emt 0:00:43]} Kg8 {[%emt 0:00:05]} 45. Qc2 {[%emt 0:00:35]} Re3 {[%emt 0:00:45]} 46. Rxe3 {[%emt 0:01:11]} Nxe3 {[%emt 0:00:44]} 47. Qe2 {[%emt 0:00:00]} Nd5 {[%emt 0:00:00]} 48. Rb7 {[%emt 0:00:04]} Nxf4 {[%emt 0:00:53]} 49. Nxf4 {[%emt 0:00:58]} Qxf4 {[%emt 0:00:30]} 50. Qh5 {[%emt 0:00:10]} Qe4+ {[%emt 0:00:35]} 51. Ka1 {[%emt 0:01:02]} Rf8 {[%emt 0:00:00]} 52. Rxb5 {[%emt 0:00:10]} Qc4 {[%emt 0:00:36]} 53. Rf5 {[%emt 0:00:10]} Rxf5 {[%emt 0:01:06]} 54. Qe8+ {[%emt 0:01:18]} Rf8 {[%emt 0:00:10]} 0-1

[Event "Eurasia Open Cup 2019"]
[Site "Ekaterinburg"]
[Date "2019.08.01"]
[Round "2.35"]
[White "Guseva, Marina"]
[Black "Nosacheva, Mariya"]
[Result "1-0"]
[ECO "E63"]
[WhiteElo "2379"]
[BlackElo "2150"]
[Annotator "NA"]
[PlyCount "69"]
[EventDate "2019.07.31"]
[EventType "swiss"]
[EventCountry "RUS"]
[SourceTitle "playchess.com"]
[Source "ChessBase"]
[SourceQuality "1"]
[TimeControl "5400+30"]

1. d4 {[%emt 0:00:00]} Nf6 {[%emt 0:00:00]} 2. c4 {[%emt 0:00:00]} g6 {[%emt 0:00:00]} 3. Nf3 {[%emt 0:00:00]} Bg7 {[%emt 0:00:00]} 4. g3 {[%emt 0:00:00]} O-O {[%emt 0:00:01]} 5. Bg2 {[%emt 0:00:00]} d6 {[%emt 0:00:21]} 6. O-O {[%emt 0:00:00]} Nc6 {[%emt 0:01:36]} 7. Nc3 {[%emt 0:00:00]} a6 {[%emt 0:00:23]} 8. e3 {[%emt 0:00:02]} Rb8 {[%emt 0:01:20]} 9. Qe2 {[%emt 0:00:00]} b5 {[%emt 0:00:00]} 10. Rd1 {[%emt 0:00:00]} e6 {[%emt 0:00:53]} 11. e4 {[%emt 0:00:00]} Na5 {[%emt 0:02:25]} 12. cxb5 {[%emt 0:00:19]} axb5 {[%emt 0:09:37]} 13. b4 {[%emt 0:00:33]} Nc6 {[%emt 0:00:52]} 14. Rb1 {[%emt 0:00:04]} Qe8 {[%emt 0:06:29]} 15. a3 {[%emt 0:00:07]} e5 {[%emt 0:04:29]} 16. d5 {[%emt 0:05:18]} Nd4 {[%emt 0:01:22]} 17. Nxd4 {[%emt 0:10:07]} exd4 {[%emt 0:00:33]} 18. Rxd4 {[%emt 0:01:12]} Nxd5 {[%emt 0:00:06]} 19. Rxd5 {[%emt 0:00:34]} Bxc3 {[%emt 0:02:54]} 20. Bh6 {[%emt 0:00:41]} Bg7 {[%emt 0:00:10]} 21. Bxg7 {[%emt 0:27:01]} Kxg7 {[%emt 0:01:11]} 22. Rc1 {[%emt 0:00:03]} Be6 {[%emt 0:00:07]} 23. Qb2+ {[%emt 0:00:03]} Kg8 {[%emt 0:02:04]} 24. Rd2 {[%emt 0:01:26]} Bc4 {[%emt 0:00:20]} 25. a4 {[%emt 0:00:12]} Qe7 {[%emt 0:06:00]} 26. a5 {[%emt 0:00:16]} c5 {[%emt 0:00:50]} 27. h4 {[%emt 0:01:49]} f5 {[%emt 0:09:10]} 28. bxc5 {[%emt 0:05:48]} dxc5 {[%emt 0:04:25]} 29. exf5 {[%emt 0:13:47]} Rbd8 {[%emt 0:07:57]} 30. fxg6 {[%emt 0:00:03]} hxg6 {[%emt 0:00:12]} 31. a6 {[%emt 0:02:50]} Kh7 {[%emt 0:00:10]} 32. Rxd8 {[%emt 0:00:38]} Rxd8 {[%emt 0:11:35]} 33. Ra1 {[%emt 0:10:44]} Qa7 {[%emt 0:00:36]} 34. Qf6 {[%emt 0:00:08]} Re8 {[%emt 0:04:08]} 35. Bb7 {[%emt 0:00:54]} 1-0

[Event "Eurasia Open Cup 2019"]
[Site "Ekaterinburg"]
[Date "2019.08.01"]
[Round "2.36"]
[White "Ufimtsev, Egor"]
[Black "Chekletsov, Ilya"]
[Result "1/2-1/2"]
[ECO "A17"]
[WhiteElo "2148"]
[BlackElo "2374"]
[Annotator "NA"]
[PlyCount "61"]
[EventDate "2019.07.31"]
[EventType "swiss"]
[EventCountry "RUS"]
[SourceTitle "playchess.com"]
[Source "ChessBase"]
[SourceQuality "1"]
[TimeControl "5400+30"]

1. Nf3 {[%emt 0:00:00]} Nf6 {[%emt 0:00:09]} 2. c4 {[%emt 0:00:05]} e6 {[%emt 0:00:00]} 3. Nc3 {[%emt 0:00:15]} Bb4 {[%emt 0:00:05]} 4. Qc2 {[%emt 0:00:16]} c5 {[%emt 0:00:55]} 5. a3 {[%emt 0:01:35]} Ba5 {[%emt 0:00:26]} 6. g3 {[%emt 0:00:15]} O-O {[%emt 0:00:54]} 7. Bg2 {[%emt 0:00:25]} Nc6 {[%emt 0:00:10]} 8. O-O {[%emt 0:01:37]} a6 {[%emt 0:00:15]} 9. e3 {[%emt 0:07:01]} d5 {[%emt 0:13:38]} 10. cxd5 {[%emt 0:04:18]} exd5 {[%emt 0:00:05]} 11. d4 {[%emt 0:00:50]} cxd4 {[%emt 0:01:31]} 12. Nxd4 {[%emt 0:01:01]} Nxd4 {[%emt 0:03:42]} 13. exd4 {[%emt 0:00:25]} h6 {[%emt 0:00:15]} 14. Qb3 {[%emt 0:16:05]} Qb6 {[%emt 0:02:22]} 15. Qxb6 {[%emt 0:01:05]} Bxb6 {[%emt 0:13:01]} 16. Nxd5 {[%emt 0:00:04]} Nxd5 {[%emt 0:08:05]} 17. Bxd5 {[%emt 0:00:10]} Bxd4 {[%emt 0:00:04]} 18. Rd1 {[%emt 0:00:11]} Be5 {[%emt 0:02:04]} 19. Be3 {[%emt 0:01:04]} Bxb2 {[%emt 0:05:05]} 20. Ra2 {[%emt 0:01:18]} Bf6 {[%emt 0:00:05]} 21. Rb1 {[%emt 0:00:35]} Rd8 {[%emt 0:00:05]} 22. Rd2 {[%emt 0:00:38]} Rxd5 {[%emt 0:15:20]} 23. Rxd5 {[%emt 0:00:24]} Be6 {[%emt 0:03:14]} 24. Rd2 {[%emt 0:00:05]} b5 {[%emt 0:00:05]} 25. Rc1 {[%emt 0:08:45]} Bc4 {[%emt 0:00:15]} 26. a4 {[%emt 0:00:09]} Kh7 {[%emt 0:03:51]} 27. axb5 {[%emt 0:09:26]} axb5 {[%emt 0:00:41]} 28. Rd7 {[%emt 0:00:42]} Ra2 {[%emt 0:00:05]} 29. Rc7 {[%emt 0:00:15]} Rb2 {[%emt 0:04:05]} 30. R7xc4 {[%emt 0:03:50]} bxc4 {[%emt 0:01:12]} 31. Rxc4 {[%emt 0:00:10]} 1/2-1/2

[Event "Eurasia Open Cup 2019"]
[Site "Ekaterinburg"]
[Date "2019.08.01"]
[Round "2.37"]
[White "Tunik, Gennady"]
[Black "Voinikonis, Nikita"]
[Result "1/2-1/2"]
[ECO "D06"]
[WhiteElo "2371"]
[BlackElo "2137"]
[Annotator "NA"]
[PlyCount "96"]
[EventDate "2019.07.31"]
[EventType "swiss"]
[EventCountry "RUS"]
[SourceTitle "playchess.com"]
[Source "ChessBase"]
[SourceQuality "1"]
[TimeControl "5400+30"]

1. d4 {[%emt 0:00:00]} d5 {[%emt 0:00:00]} 2. c4 {[%emt 0:00:00]} c5 {[%emt 0:00:15]} 3. cxd5 {[%emt 0:00:13]} Qxd5 {[%emt 0:00:00]} 4. Nf3 {[%emt 0:00:46]} cxd4 {[%emt 0:00:00]} 5. Nc3 {[%emt 0:00:27]} Qa5 {[%emt 0:00:00]} 6. Nxd4 {[%emt 0:00:22]} Nf6 {[%emt 0:00:00]} 7. g3 {[%emt 0:05:16]} e5 {[%emt 0:00:47]} 8. Nb3 {[%emt 0:00:45]} Qc7 {[%emt 0:00:40]} 9. Bg5 {[%emt 0:01:23]} Bb4 {[%emt 0:01:57]} 10. Bg2 {[%emt 0:03:14]} Bxc3+ {[%emt 0:00:53]} 11. bxc3 {[%emt 0:00:35]} Nbd7 {[%emt 0:00:05]} 12. O-O {[%emt 0:03:17]} O-O {[%emt 0:01:44]} 13. c4 {[%emt 0:01:01]} h6 {[%emt 0:05:12]} 14. Bd2 {[%emt 0:03:09]} a5 {[%emt 0:11:37]} 15. Rc1 {[%emt 0:06:53]} Nb8 {[%emt 0:04:03]} 16. Bc3 {[%emt 0:02:35]} Nc6 {[%emt 0:00:30]} 17. Qc2 {[%emt 0:06:28]} Be6 {[%emt 0:01:22]} 18. Ba1 {[%emt 0:05:36]} Rad8 {[%emt 0:03:01]} 19. Nc5 {[%emt 0:04:35]} Bc8 {[%emt 0:08:36]} 20. Ne4 {[%emt 0:05:55]} Nxe4 {[%emt 0:01:06]} 21. Bxe4 {[%emt 0:02:25]} Nd4 {[%emt 0:04:46]} 22. Qb2 {[%emt 0:02:57]} Rfe8 {[%emt 0:01:01]} 23. c5 {[%emt 0:01:23]} Be6 {[%emt 0:02:59]} 24. e3 {[%emt 0:04:54]} Nc6 {[%emt 0:05:57]} 25. Rfd1 {[%emt 0:00:34]} Rxd1+ {[%emt 0:02:31]} 26. Rxd1 {[%emt 0:02:06]} Rd8 {[%emt 0:00:51]} 27. Rxd8+ {[%emt 0:03:08]} Nxd8 {[%emt 0:12:38]} 28. Qxe5 {[%emt 0:00:16]} Qxe5 {[%emt 0:00:03]} 29. Bxe5 {[%emt 0:01:42]} Bxa2 {[%emt 0:01:29]} 30. Bc7 {[%emt 0:02:04]} Nc6 {[%emt 0:00:11]} 31. Bxc6 {[%emt 0:00:05]} bxc6 {[%emt 0:01:14]} 32. Bxa5 {[%emt 0:02:06]} Bd5 {[%emt 0:00:03]} 33. g4 {[%emt 0:00:06]} Bf3 {[%emt 0:00:05]} 34. h3 {[%emt 0:00:05]} h5 {[%emt 0:00:06]} 35. gxh5 {[%emt 0:00:54]} Bxh5 {[%emt 0:01:12]} 36. Kg2 {[%emt 0:00:07]} f5 {[%emt 0:00:06]} 37. Kg3 {[%emt 0:00:21]} Kf7 {[%emt 0:00:06]} 38. Kf4 {[%emt 0:00:09]} g6 {[%emt 0:02:50]} 39. Ke5 {[%emt 0:01:19]} Bf3 {[%emt 0:00:07]} 40. Bd8 {[%emt 0:00:51]} Bg2 {[%emt 0:01:09]} 41. h4 {[%emt 0:00:20]} Bf3 {[%emt 0:00:14]} 42. Bg5 {[%emt 0:00:11]} Bd1 {[%emt 0:00:23]} 43. Kd6 {[%emt 0:00:28]} Bf3 {[%emt 0:00:32]} 44. Bf4 {[%emt 0:00:18]} Bd5 {[%emt 0:01:07]} 45. Be5 {[%emt 0:01:27]} Be4 {[%emt 0:00:07]} 46. Bc3 {[%emt 0:00:05]} Bd5 {[%emt 0:00:20]} 47. Ke5 {[%emt 0:00:12]} Bf3 {[%emt 0:00:13]} 48. Kf4 {[%emt 0:00:10]} Bd1 {[%emt 0:00:17]} 1/2-1/2

[Event "Eurasia Open Cup 2019"]
[Site "Ekaterinburg"]
[Date "2019.08.01"]
[Round "2.38"]
[White "Fedotov, Alexey"]
[Black "Fotin, Vladimir"]
[Result "1/2-1/2"]
[ECO "D85"]
[WhiteElo "2141"]
[BlackElo "2368"]
[Annotator "NA"]
[PlyCount "152"]
[EventDate "2019.07.31"]
[EventType "swiss"]
[EventCountry "RUS"]
[SourceTitle "playchess.com"]
[Source "ChessBase"]
[SourceQuality "1"]
[TimeControl "5400+30"]

1. d4 {[%emt 0:00:00]} Nf6 {[%emt 0:02:14]} 2. c4 {[%emt 0:00:00]} g6 {[%emt 0:00:34]} 3. Nc3 {[%emt 0:00:11]} d5 {[%emt 0:00:44]} 4. cxd5 {[%emt 0:00:00]} Nxd5 {[%emt 0:00:07]} 5. e4 {[%emt 0:00:00]} Nxc3 {[%emt 0:00:00]} 6. bxc3 {[%emt 0:00:38]} Bg7 {[%emt 0:00:00]} 7. Nf3 {[%emt 0:00:00]} c5 {[%emt 0:03:27]} 8. Be3 {[%emt 0:00:10]} Qa5 {[%emt 0:00:21]} 9. Qd2 {[%emt 0:00:12]} O-O {[%emt 0:03:31]} 10. Rc1 {[%emt 0:01:09]} Rd8 {[%emt 0:03:52]} 11. d5 {[%emt 0:00:54]} e6 {[%emt 0:00:30]} 12. Bg5 {[%emt 0:00:55]} f6 {[%emt 0:00:41]} 13. Be3 {[%emt 0:00:51]} Nc6 {[%emt 0:00:23]} 14. Bd3 {[%emt 0:01:44]} Ne7 {[%emt 0:01:12]} 15. c4 {[%emt 0:03:12]} Qxd2+ {[%emt 0:00:00]} 16. Nxd2 {[%emt 0:20:38]} b6 {[%emt 0:00:21]} 17. Ke2 {[%emt 0:13:44]} h6 {[%emt 0:01:18]} 18. h4 {[%emt 0:04:43]} f5 {[%emt 0:03:33]} 19. f3 {[%emt 0:02:09]} Bd7 {[%emt 0:06:21]} 20. Rhg1 {[%emt 0:13:45]} Rf8 {[%emt 0:09:25]} 21. g4 {[%emt 0:01:23]} fxg4 {[%emt 0:00:30]} 22. fxg4 {[%emt 0:00:50]} Rae8 {[%emt 0:04:26]} 23. Rcf1 {[%emt 0:01:02]} Rxf1 {[%emt 0:00:26]} 24. Nxf1 {[%emt 0:07:57]} Nc8 {[%emt 0:00:54]} 25. Nd2 {[%emt 0:00:54]} exd5 {[%emt 0:03:17]} 26. cxd5 {[%emt 0:06:12]} Nd6 {[%emt 0:09:00]} 27. Bf4 {[%emt 0:03:44]} Nf7 {[%emt 0:00:05]} 28. Nf3 {[%emt 0:05:22]} b5 {[%emt 0:03:37]} 29. Kf2 {[%emt 0:02:51]} c4 {[%emt 0:01:27]} 30. Bc2 {[%emt 0:01:51]} a5 {[%emt 0:05:03]} 31. Kg3 {[%emt 0:00:38]} b4 {[%emt 0:00:45]} 32. Re1 {[%emt 0:00:19]} a4 {[%emt 0:00:25]} 33. e5 {[%emt 0:01:11]} g5 {[%emt 0:02:01]} 34. hxg5 {[%emt 0:03:20]} hxg5 {[%emt 0:00:15]} 35. Bd2 {[%emt 0:00:17]} c3 {[%emt 0:00:01]} 36. Bxc3 {[%emt 0:01:03]} bxc3 {[%emt 0:00:26]} 37. e6 {[%emt 0:00:45]} Kf8 {[%emt 0:00:19]} 38. exd7 {[%emt 0:00:05]} Rxe1 {[%emt 0:22:34]} 39. Nxe1 {[%emt 0:01:05]} Ke7 {[%emt 0:00:38]} 40. Bxa4 {[%emt 0:00:39]} Kd6 {[%emt 0:01:27]} 41. Kf3 {[%emt 0:00:00]} Kc5 {[%emt 0:04:41]} 42. Ke4 {[%emt 0:01:05]} Nd6+ {[%emt 0:00:30]} 43. Kd3 {[%emt 0:00:41]} Bf6 {[%emt 0:00:00]} 44. Bc6 {[%emt 0:00:50]} Nc4 {[%emt 0:00:00]} 45. d8=Q {[%emt 0:00:30]} Bxd8 {[%emt 0:00:00]} 46. Kxc3 {[%emt 0:01:29]} Ba5+ {[%emt 0:00:31]} 47. Kd3 {[%emt 0:00:00]} Bxe1 {[%emt 0:00:07]} 48. Ke4 {[%emt 0:01:24]} Bd2 {[%emt 0:00:21]} 49. a4 {[%emt 0:00:00]} Bf4 {[%emt 0:00:05]} 50. Ba8 {[%emt 0:00:46]} Ne3 {[%emt 0:01:34]} 51. a5 {[%emt 0:01:40]} Nc4 {[%emt 0:02:25]} 52. a6 {[%emt 0:00:11]} Nd6+ {[%emt 0:00:07]} 53. Kd3 {[%emt 0:00:18]} Kb6 {[%emt 0:00:35]} 54. Kd4 {[%emt 0:00:19]} Kxa6 {[%emt 0:00:06]} 55. Bc6 {[%emt 0:01:18]} Kb6 {[%emt 0:00:00]} 56. Bd7 {[%emt 0:00:00]} Kc7 {[%emt 0:00:43]} 57. Be6 {[%emt 0:00:11]} Ne8 {[%emt 0:00:21]} 58. Ke4 {[%emt 0:01:16]} Nd6+ {[%emt 0:00:34]} 59. Kd4 {[%emt 0:00:33]} Ne8 {[%emt 0:00:05]} 60. Ke4 {[%emt 0:00:10]} Kd6 {[%emt 0:00:28]} 61. Kf3 {[%emt 0:00:07]} Nf6 {[%emt 0:00:35]} 62. Bc8 {[%emt 0:00:47]} Kxd5 {[%emt 0:00:09]} 63. Ba6 {[%emt 0:00:50]} Nd7 {[%emt 0:00:10]} 64. Bb7+ {[%emt 0:00:21]} Kd4 {[%emt 0:00:13]} 65. Bc8 {[%emt 0:00:03]} Ne5+ {[%emt 0:00:06]} 66. Kf2 {[%emt 0:00:07]} Be3+ {[%emt 0:00:09]} 67. Kg3 {[%emt 0:00:39]} Bd2 {[%emt 0:00:19]} 68. Bb7 {[%emt 0:00:14]} Ke3 {[%emt 0:00:07]} 69. Bc8 {[%emt 0:00:39]} Be1+ {[%emt 0:00:09]} 70. Kh3 {[%emt 0:00:12]} Kf2 {[%emt 0:00:07]} 71. Bb7 {[%emt 0:00:26]} Kg1 {[%emt 0:00:35]} 72. Be4 {[%emt 0:00:24]} Nc4 {[%emt 0:01:46]} 73. Bd5 {[%emt 0:00:04]} Ne3 {[%emt 0:01:12]} 74. Bf3 {[%emt 0:00:47]} Bh4 {[%emt 0:00:44]} 75. Bd1 {[%emt 0:00:58]} Nd5 {[%emt 0:00:07]} 76. Bf3 {[%emt 0:00:56]} Nf4# {[%emt 0:00:07]} 1/2-1/2

[Event "Eurasia Open Cup 2019"]
[Site "Ekaterinburg"]
[Date "2019.08.01"]
[Round "2.39"]
[White "Postnikov, Daniil"]
[Black "Averyanov, Grigori"]
[Result "1/2-1/2"]
[ECO "B66"]
[WhiteElo "2354"]
[BlackElo "2131"]
[Annotator "NA"]
[PlyCount "46"]
[EventDate "2019.07.31"]
[EventType "swiss"]
[EventCountry "RUS"]
[SourceTitle "playchess.com"]
[Source "ChessBase"]
[SourceQuality "1"]
[TimeControl "5400+30"]

1. e4 {[%emt 0:00:00]} c5 {[%emt 0:01:05]} 2. Nf3 {[%emt 0:00:00]} d6 {[%emt 0:00:05]} 3. d4 {[%emt 0:00:00]} cxd4 {[%emt 0:00:04]} 4. Nxd4 {[%emt 0:00:00]} Nf6 {[%emt 0:00:00]} 5. Nc3 {[%emt 0:00:00]} Nc6 {[%emt 0:00:11]} 6. Bg5 {[%emt 0:00:35]} e6 {[%emt 0:00:46]} 7. Qd2 {[%emt 0:00:13]} a6 {[%emt 0:00:00]} 8. O-O-O {[%emt 0:00:13]} h6 {[%emt 0:00:00]} 9. Nxc6 {[%emt 0:01:06]} bxc6 {[%emt 0:00:20]} 10. Bf4 {[%emt 0:00:12]} d5 {[%emt 0:00:00]} 11. Qe3 {[%emt 0:00:12]} Bb4 {[%emt 0:00:00]} 12. Be2 {[%emt 0:19:08]} O-O {[%emt 0:00:00]} 13. e5 {[%emt 0:03:40]} Nh7 {[%emt 0:00:00]} 14. h4 {[%emt 0:03:38]} Qa5 {[%emt 0:24:52]} 15. Rh3 {[%emt 0:07:59]} Bc5 {[%emt 0:03:53]} 16. Qg3 {[%emt 0:05:35]} Kh8 {[%emt 0:00:47]} 17. Bd3 {[%emt 0:02:00]} Rb8 {[%emt 0:11:44]} 18. Bxh6 {[%emt 0:22:22]} gxh6 {[%emt 0:00:37]} 19. Bxh7 {[%emt 0:00:07]} Kxh7 {[%emt 0:12:21]} 20. Qd3+ {[%emt 0:00:56]} Kh8 {[%emt 0:00:09]} 21. Qd2 {[%emt 0:00:04]} Kh7 {[%emt 0:00:05]} 22. Qd3+ {[%emt 0:00:15]} Kh8 {[%emt 0:00:04]} 23. Qd2 {[%emt 0:00:07]} Kh7 {[%emt 0:00:06]} 1/2-1/2

[Event "Eurasia Open Cup 2019"]
[Site "Ekaterinburg"]
[Date "2019.08.01"]
[Round "2.40"]
[White "Zhukov, Ivan"]
[Black "Bublei, Pavel"]
[Result "0-1"]
[ECO "B17"]
[WhiteElo "2136"]
[BlackElo "2353"]
[Annotator "NA"]
[PlyCount "100"]
[EventDate "2019.07.31"]
[EventType "swiss"]
[EventCountry "RUS"]
[SourceTitle "playchess.com"]
[Source "ChessBase"]
[SourceQuality "1"]
[TimeControl "5400+30"]

1. e4 {[%emt 0:00:00]} c6 {[%emt 0:00:30]} 2. d4 {[%emt 0:00:30]} d5 {[%emt 0:00:35]} 3. Nd2 {[%emt 0:00:50]} dxe4 {[%emt 0:00:20]} 4. Nxe4 {[%emt 0:00:05]} Nd7 {[%emt 0:00:15]} 5. Ng5 {[%emt 0:01:26]} h6 {[%emt 0:00:20]} 6. Ne6 {[%emt 0:01:51]} Qb6 {[%emt 0:00:10]} 7. Nxf8 {[%emt 0:01:30]} Nxf8 {[%emt 0:00:10]} 8. Nf3 {[%emt 0:04:15]} Nf6 {[%emt 0:00:41]} 9. c3 {[%emt 0:04:09]} Bf5 {[%emt 0:00:20]} 10. Be2 {[%emt 0:02:30]} Ng6 {[%emt 0:01:25]} 11. Qb3 {[%emt 0:02:57]} Qc7 {[%emt 0:00:56]} 12. Bd2 {[%emt 0:02:37]} O-O {[%emt 0:00:25]} 13. O-O {[%emt 0:00:31]} Rad8 {[%emt 0:08:05]} 14. Rad1 {[%emt 0:01:26]} b6 {[%emt 0:01:00]} 15. Rfe1 {[%emt 0:02:46]} e6 {[%emt 0:01:05]} 16. a4 {[%emt 0:03:14]} Be4 {[%emt 0:01:15]} 17. a5 {[%emt 0:05:01]} Nf4 {[%emt 0:06:16]} 18. Bxf4 {[%emt 0:01:49]} Qxf4 {[%emt 0:00:05]} 19. axb6 {[%emt 0:01:08]} axb6 {[%emt 0:00:05]} 20. Nd2 {[%emt 0:18:17]} b5 {[%emt 0:02:29]} 21. g3 {[%emt 0:05:20]} Qf5 {[%emt 0:01:09]} 22. Nxe4 {[%emt 0:00:39]} Nxe4 {[%emt 0:00:15]} 23. f4 {[%emt 0:02:07]} Nd6 {[%emt 0:03:43]} 24. Bd3 {[%emt 0:02:06]} Qd5 {[%emt 0:00:58]} 25. Qc2 {[%emt 0:01:12]} Nc4 {[%emt 0:04:16]} 26. Bxc4 {[%emt 0:00:57]} Qxc4 {[%emt 0:01:28]} 27. Re5 {[%emt 0:00:43]} Qa2 {[%emt 0:02:31]} 28. Rc5 {[%emt 0:00:48]} Rd6 {[%emt 0:00:57]} 29. Qg2 {[%emt 0:00:59]} b4 {[%emt 0:04:58]} 30. Rf1 {[%emt 0:03:20]} Rb8 {[%emt 0:04:36]} 31. Rf2 {[%emt 0:08:56]} bxc3 {[%emt 0:03:10]} 32. bxc3 {[%emt 0:06:31]} Rb1+ {[%emt 0:00:09]} 33. Rf1 {[%emt 0:00:05]} Rb2 {[%emt 0:00:05]} 34. Qf3 {[%emt 0:00:05]} Rxh2 {[%emt 0:01:47]} 35. Rxc6 {[%emt 0:01:21]} Rxc6 {[%emt 0:08:46]} 36. Qxc6 {[%emt 0:00:28]} Qd2 {[%emt 0:04:51]} 37. Qf3 {[%emt 0:00:00]} Rh3 {[%emt 0:00:24]} 38. Qf2 {[%emt 0:02:15]} Qxc3 {[%emt 0:07:37]} 39. Kg2 {[%emt 0:04:43]} Rh5 {[%emt 0:00:04]} 40. Qf3 {[%emt 0:00:07]} Qa5 {[%emt 0:00:04]} 41. Rf2 {[%emt 0:04:17]} g6 {[%emt 0:00:11]} 42. Qe4 {[%emt 0:02:45]} Qc3 {[%emt 0:00:17]} 43. Rf3 {[%emt 0:00:18]} Qc4 {[%emt 0:02:48]} 44. g4 {[%emt 0:03:14]} Rd5 {[%emt 0:00:02]} 45. Rd3 {[%emt 0:00:01]} Qc2+ {[%emt 0:01:59]} 46. Kg3 {[%emt 0:02:21]} h5 {[%emt 0:00:12]} 47. g5 {[%emt 0:00:30]} Ra5 {[%emt 0:02:23]} 48. Re3 {[%emt 0:00:30]} Qc1 {[%emt 0:00:27]} 49. Rb3 {[%emt 0:00:03]} Qg1+ {[%emt 0:01:45]} 50. Kh3 {[%emt 0:00:43]} Qg4+ {[%emt 0:00:31]} 0-1